bitfinex/quotes_ETHUSD_20241122
["timestamp","ask_amount","ask_price","bid_price","bid_amount"]
[1732276731867,1.28721386,3342.1,3341.8,0.0574]
[1732276732381,1.28721386,3341.9,3341.8,0.0574]
[1732276732597,0.21106139,3341.9,3341.8,0.0574]
[1732276732772,1.28721386,3342.1,3341.8,0.0574]
[1732276733079,2.11061386,3342.2,3341.8,0.0574]
[1732276733257,2.06251386,3342.4,3341.8,0.0574]
[1732276733453,0.50542539,3342.3,3341.8,0.0574]
[1732276733849,1.28721386,3342.2,3341.8,0.0574]
[1732276736876,1.28721386,3342.2,3341.0,0.0574]
[1732276737193,1.28721386,3342.0,3341.0,0.0574]
[1732276737391,1.28721386,3342.0,3341.1,0.3559]
[1732276737753,1.28721386,3341.8,3341.1,0.3559]
[1732276738260,1.28721386,3341.8,3341.2,0.2985]
[1732276739080,1.28721386,3341.6,3341.2,0.2985]
[1732276739296,1.28721386,3341.6,3341.1,0.0574]
[1732276739457,1.28721386,3341.4,3341.1,0.0574]
[1732276739799,1.28721386,3341.4,3340.4,0.0574]
[1732276740519,1.28721386,3341.4,3340.6,0.0574]
[1732276741261,1.28721386,3341.6,3340.6,0.0574]
[1732276744069,1.28721386,3342.0,3340.9,0.0574]
[1732276744318,2.05441386,3342.2,3341.2,0.0574]
[1732276744990,1.28721386,3342.2,3341.2,0.0574]
[1732276745310,1.28721386,3342.2,3341.4,0.0574]
[1732276746305,1.28721386,3342.0,3341.4,0.0574]
[1732276747600,1.28721386,3341.8,3341.4,0.0574]
[1732276747798,1.28721386,3341.8,3340.6,0.2985]
[1732276747799,1.28721386,3341.8,3340.7,0.0574]
[1732276748107,0.50675339,3341.7,3340.7,0.0574]
[1732276750320,1.28721386,3341.8,3340.7,0.0574]
[1732276750680,3.7819,3342.7,3341.3,0.3559]
[1732276750880,1.28721386,3342.5,3341.6,0.0574]
[1732276751085,0.7819,3342.7,3341.6,0.0574]
[1732276751086,1.28721386,3342.3,3341.6,0.0574]
[1732276753520,1.28721386,3341.9,3341.6,0.0574]
[1732276754124,1.28721386,3341.9,3340.9,0.0574]
[1732276754283,0.23721386,3341.9,3340.9,0.0574]
[1732276754927,1.28721386,3342.1,3340.9,0.0574]
[1732276755230,1.28721386,3342.1,3341.1,0.0574]
[1732276755441,1.28721386,3342.3,3341.1,0.0574]
[1732276755731,1.83721386,3342.3,3341.1,0.0574]
[1732276756584,0.55,3342.3,3341.1,0.0574]
[1732276756820,1.54011579,3342.3,3341.1,0.0574]
[1732276757423,0.7977,3342.4,3341.1,0.0574]
[1732276757608,0.55,3342.5,3341.1,0.0574]
[1732276757815,2.71908797,3342.6,3341.1,0.0574]
[1732276758021,0.7781,3342.7,3341.1,0.0574]
[1732276758188,0.7781,3342.7,3341.4,0.0574]
[1732276759427,6.26082797,3342.6,3341.4,0.0574]
[1732276759636,6.26082797,3342.6,3341.4,0.3559]
[1732276760839,5.71082797,3342.6,3341.4,0.0574]
[1732276761047,2.71908797,3342.6,3341.4,0.0574]
[1732276761330,3.41820681,3342.6,3341.4,0.0574]
[1732276761692,0.55,3342.5,3341.4,0.0574]
[1732276763893,0.5,3342.5,3341.4,0.0574]
[1732276764333,1.28857043,3342.9,3341.4,0.0574]
[1732276764536,0.34938304,3342.8,3341.4,0.0574]
[1732276766398,0.7861,3342.9,3341.4,0.0574]
[1732276767503,3.54155,3342.8,3341.4,0.0574]
[1732276767899,2.71908797,3342.6,3341.4,0.0574]
[1732276768122,0.7657,3342.4,3341.4,0.0574]
[1732276768319,0.4034788,3342.3,3341.4,0.0574]
[1732276769623,3.3954888,3342.3,3341.4,0.0574]
[1732276769939,2.99205,3342.2,3341.4,0.0574]
[1732276770143,3.12256677,3342.3,3341.4,0.0574]
[1732276770641,6.11457677,3342.3,3341.4,0.0574]
[1732276770801,1.04221368,3342.2,3341.4,0.0574]
[1732276773264,4.03426368,3342.2,3341.4,0.0574]
[1732276773551,0.55,3342.1,3341.4,0.0574]
[1732276775731,1.04221368,3342.2,3341.4,0.0574]
[1732276776059,3.75756,3342.4,3341.4,0.0574]
[1732276776226,2.99198,3342.3,3341.4,0.0574]
[1732276776557,2.992,3342.3,3341.4,0.0574]
[1732276776754,0.674956,3342.2,3341.4,0.0574]
[1732276778429,3.667006,3342.2,3341.4,0.0574]
[1732276779639,2.99219,3342.1,3341.4,0.0574]
[1732276779835,2.99222,3342.0,3341.4,0.0574]
[1732276780040,0.6659226,3341.9,3341.4,0.0574]
[1732276780774,2.99212,3342.2,3341.4,0.0574]
[1732276781569,2.99218,3342.1,3341.4,0.0574]
[1732276781864,2.99231,3341.9,3341.4,0.0574]
[1732276782194,2.9924,3341.8,3341.4,0.0574]
[1732276782473,0.598449,3341.8,3341.4,0.0574]
[1732276782663,1.28731322,3342.0,3341.4,0.0574]
[1732276783978,4.27956322,3342.0,3341.4,0.0574]
[1732276784132,1.28731322,3342.0,3341.4,0.0574]
[1732276784336,4.27955322,3342.0,3341.4,0.0574]
[1732276784532,5.00672554,3342.0,3341.4,0.0574]
[1732276785062,2.01448554,3342.0,3341.4,0.0574]
[1732276787475,5.00672554,3342.0,3341.4,0.0574]
[1732276787668,2.01448554,3342.0,3341.4,0.0574]
[1732276788076,0.72717232,3342.0,3341.4,0.0574]
[1732276788382,1.28731322,3342.1,3341.4,0.0574]
[1732276788578,1.28731322,3342.4,3341.4,0.0574]
[1732276788972,0.42790932,3342.3,3341.4,0.0574]
[1732276789585,0.8284,3342.7,3341.4,0.0574]
[1732276789885,1.28731322,3342.6,3341.4,0.0574]
[1732276790179,1.28731322,3342.3,3341.4,0.0574]
[1732276790556,4.27927322,3342.3,3341.4,0.0574]
[1732276790760,7.27129322,3342.3,3341.4,0.0574]
[1732276791080,1.28731322,3342.0,3341.4,0.0574]
[1732276792783,4.27953322,3342.0,3341.4,0.0574]
[1732276792982,5.00668654,3342.0,3341.4,0.0574]
[1732276793152,2.99231,3341.9,3341.4,0.0574]
[1732276795391,1.28731322,3341.8,3341.4,0.0574]
[1732276797877,1.28731322,3341.8,3340.5,0.2985]
[1732276798082,1.28731322,3341.8,3340.6,0.0574]
[1732276798394,1.28731322,3341.8,3340.9,0.0574]
[1732276798787,2.99207,3342.2,3340.9,0.0574]
[1732276798969,3.8196,3342.3,3341.1,0.0574]
[1732276799172,4.27937322,3342.2,3341.3,0.0574]
[1732276799783,1.28731322,3342.2,3341.3,0.0574]
[1732276799989,4.27935322,3342.2,3341.3,0.0574]
[1732276800305,4.27935322,3342.2,3341.4,0.0574]
[1732276800617,1.28731322,3342.2,3341.4,0.0574]
[1732276800780,4.27935322,3342.2,3341.4,0.0574]
[1732276802611,5.03838322,3342.1,3341.4,0.0574]
[1732276802814,1.28731322,3341.8,3341.4,0.0574]
[1732276803142,4.27971322,3341.8,3341.4,0.0574]
[1732276803301,4.27971322,3341.8,3340.6,0.2985]
[1732276803302,1.28731322,3341.8,3340.7,0.0574]
[1732276803504,4.27999322,3341.5,3340.7,0.0574]
[1732276803885,4.22999322,3341.5,3340.7,0.0574]
[1732276804319,1.23731322,3341.5,3340.7,0.0574]
[1732276804527,0.8095,3341.7,3340.7,0.0574]
[1732276804687,2.99316,3341.0,3340.7,0.0574]
[1732276804883,2.99343,3340.7,3340.0,0.0574]
[1732276805083,1.28731322,3340.5,3340.0,0.0574]
[1732276805424,4.28113322,3340.3,3340.0,0.0574]
[1732276805592,0.7702,3339.9,3338.4,0.0574]
[1732276805795,0.01,3340.8,3338.4,0.0574]
[1732276805796,0.7551,3340.3,3338.5,0.0574]
[1732276805996,0.7551,3341.1,3339.0,0.0574]
[1732276806196,1.28731322,3340.4,3339.2,0.0574]
[1732276806412,0.55,3340.9,3339.2,0.0574]
[1732276806593,0.55,3340.9,3338.2,0.0299506]
[1732276806594,2.99383,3340.2,3338.2,0.0299506]
[1732276806801,5.7169679,3340.2,3338.3,0.0574]
[1732276806986,5.7169679,3340.2,3338.5,0.0574]
[1732276807180,5.7169679,3340.2,3338.6,0.0574]
[1732276807519,3.0,3340.6,3338.6,0.0574]
[1732276807520,2.7231379,3339.8,3338.6,0.0574]
[1732276807882,2.99397,3340.1,3337.1,0.01]
[1732276807883,2.7231379,3339.0,3338.0,0.0574]
[1732276808082,5.7231379,3339.7,3338.0,0.0574]
[1732276808083,3.0,3339.7,3338.0,0.0574]
[1732276808325,3.592855,3340.0,3338.2,0.0574]
[1732276808480,2.7231379,3340.0,3338.4,0.0574]
[1732276808680,2.7231379,3339.6,3338.4,0.0574]
[1732276808895,5.7175579,3339.6,3338.4,0.0574]
[1732276809116,2.7231379,3339.6,3338.4,0.0574]
[1732276809320,0.57174179,3339.5,3338.4,0.0574]
[1732276809629,5.7175379,3339.6,3338.4,0.0574]
[1732276809920,2.99456,3339.4,3338.4,0.0574]
[1732276810217,0.7564,3339.3,3338.4,0.0574]
[1732276810418,0.7564,3339.3,3337.6,0.0574]
[1732276810619,5.7179279,3339.2,3337.6,0.32971379]
[1732276810796,2.7231379,3338.8,3337.6,0.0574]
[1732276810994,2.99523,3338.7,3337.6,0.0574]
[1732276811213,0.57183679,3338.6,3337.6,0.0574]
[1732276811522,0.8041,3338.5,3337.6,0.0574]
[1732276811692,2.7231379,3338.4,3337.6,0.0574]
[1732276811901,5.7186079,3338.4,3336.7,0.0574]
[1732276812221,2.7231379,3338.0,3336.7,0.0574]
[1732276813290,0.65225579,3338.3,3336.8,0.02996499]
[1732276813496,5.7183179,3338.7,3336.9,0.0574]
[1732276813691,5.7183179,3338.7,3337.0,0.02995953]
[1732276813692,2.7231379,3338.7,3337.0,0.02995953]
[1732276813934,0.95469879,3338.6,3337.0,0.62034125]
[1732276814308,0.95469879,3338.6,3337.1,0.08736031]
[1732276814825,0.95469879,3338.6,3337.2,0.0574]
[1732276815124,0.95469879,3338.6,3337.3,0.02995972]
[1732276815337,5.99474,3339.2,3337.3,0.02995972]
[1732276815338,0.7867,3339.6,3337.6,3.0]
[1732276815504,3.5098379,3339.6,3337.8,0.0574]
[1732276815706,3.5098379,3339.6,3338.0,0.0574]
[1732276815707,0.59771445,3339.5,3338.0,0.0574]
[1732276815913,0.24673066,3339.4,3338.2,0.0574]
[1732276816099,0.24673066,3339.4,3338.3,0.02994993]
[1732276816299,0.7993,3340.1,3338.1,0.0574]
[1732276816499,0.7993,3340.1,3338.0,3.0]
[1732276816500,5.7172479,3339.9,3338.3,0.0574]
[1732276816696,8.7114079,3339.9,3338.3,0.0574]
[1732276816989,0.95107079,3339.8,3338.3,0.0574]
[1732276817300,2.7231379,3339.9,3338.4,0.0574]
[1732276817541,2.7231379,3339.9,3338.6,0.0574]
[1732276817748,2.7231379,3340.3,3338.7,0.02994692]
[1732276817905,0.7956,3340.6,3338.8,0.0574]
[1732276818237,0.65121279,3340.5,3338.8,0.0574]
[1732276818441,0.65121279,3340.5,3339.0,0.0574]
[1732276818803,2.7231379,3340.3,3339.0,0.0574]
[1732276821751,2.7231379,3339.1,3338.2,0.0574]
[1732276822547,3.2731379,3339.5,3338.2,0.0574]
[1732276822706,4.27718069,3339.5,3338.2,0.0574]
[1732276825110,0.55,3339.0,3338.2,0.0574]
[1732276825310,2.7231379,3338.7,3338.2,0.0574]
[1732276825511,2.7231379,3338.7,3337.0,0.0574]
[1732276825753,1.12181879,3338.6,3337.0,0.0574]
[1732276826915,0.55,3339.0,3337.1,0.02996009]
[1732276827122,0.55,3339.0,3337.2,0.0574]
[1732276827345,0.813,3339.2,3336.9,2.7231379]
[1732276827346,3.72718069,3339.5,3337.5,0.0574]
[1732276827518,3.72718069,3339.5,3337.6,0.02995303]
[1732276827519,2.7231379,3339.5,3337.6,0.02995303]
[1732276827845,2.7231379,3339.5,3337.7,0.0574]
[1732276827846,0.65439279,3339.4,3337.7,0.0574]
[1732276828056,2.7231379,3339.5,3337.9,0.0574]
[1732276828220,2.7231379,3339.9,3338.1,0.0574]
[1732276828432,3.1048719,3339.9,3338.3,0.0574]
[1732276828630,3.1048719,3339.9,3338.5,0.0574]
[1732276828811,0.31048719,3339.8,3338.5,0.0574]
[1732276829538,0.55,3339.8,3338.5,0.0574]
[1732276830129,0.55,3339.9,3338.5,0.0574]
[1732276830944,3.0,3340.0,3338.5,0.0574]
[1732276830945,0.55,3340.0,3338.5,0.0574]
[1732276831248,0.70564853,3339.9,3338.5,0.0574]
[1732276831551,0.55,3340.0,3338.5,0.0574]
[1732276831737,0.55,3340.1,3338.5,0.0574]
[1732276832144,3.54397,3340.1,3338.5,0.0574]
[1732276832556,0.55,3339.9,3338.5,0.0574]
[1732276832756,0.43397668,3339.8,3338.5,0.0574]
[1732276833219,0.55,3340.1,3338.5,0.0574]
[1732276833557,0.24584735,3340.0,3338.5,0.0574]
[1732276833753,0.55,3340.1,3338.5,0.0574]
[1732276833955,0.55,3340.1,3339.5,0.00759689]
[1732276834322,3.0,3340.5,3339.5,0.00759689]
[1732276834517,1.03233753,3340.3,3339.5,0.00759689]
[1732276835356,0.24586792,3340.2,3339.5,0.00759689]
[1732276835654,0.55,3340.1,3339.5,0.00759689]
[1732276836046,0.55,3339.9,3339.5,0.00759689]
[1732276836561,0.55,3340.0,3339.5,0.00759689]
[1732276836852,0.55,3339.8,3339.5,0.00759689]
[1732276837652,0.70504553,3339.9,3339.5,0.00759689]
[1732276837866,0.55,3340.1,3339.5,0.00759689]
[1732276838020,3.0,3340.6,3339.5,0.00759689]
[1732276838366,1.27137374,3340.5,3339.6,0.0574]
[1732276838525,0.24593521,3340.4,3339.6,0.0574]
[1732276839021,3.0,3340.3,3339.6,0.0574]
[1732276839237,0.24593521,3340.2,3339.6,0.0574]
[1732276839463,0.62395852,3340.1,3339.6,0.0574]
[1732276839917,1.02543853,3340.5,3339.6,0.0574]
[1732276840121,3.50648527,3340.7,3339.6,0.0574]
[1732276840763,2.99311,3341.0,3339.6,0.0574]
[1732276840933,0.24595311,3340.6,3339.6,0.0574]
[1732276841136,2.99311,3341.0,3339.6,0.0574]
[1732276841333,0.79590824,3340.9,3339.6,0.0574]
[1732276841537,0.55,3340.7,3339.6,0.0574]
[1732276841856,0.24590824,3340.6,3339.6,0.0574]
[1732276842054,0.55,3340.5,3339.6,0.0574]
[1732276842538,0.55,3340.3,3339.6,0.0574]
[1732276843142,0.55,3340.5,3339.6,0.0574]
[1732276843558,0.24590022,3340.4,3339.6,0.0574]
[1732276843754,0.55,3340.3,3339.6,0.0574]
[1732276843958,0.99393488,3340.3,3339.6,0.0574]
[1732276845472,0.24616912,3340.2,3339.6,0.0574]
[1732276845639,0.99393488,3340.3,3339.6,0.0574]
[1732276846161,2.99399,3340.1,3339.6,0.0574]
[1732276846335,0.55,3339.9,3339.5,0.00759689]
[1732276848949,0.8034,3340.4,3339.5,0.00759689]
[1732276849150,0.79625828,3340.3,3339.5,0.00759689]
[1732276849482,0.24625828,3340.2,3339.5,0.00759689]
[1732276849783,0.24625828,3340.2,3339.6,0.0574]
[1732276851452,0.55,3340.1,3339.5,0.00759689]
[1732276851659,0.55,3339.9,3339.5,0.00759689]
[1732276851975,0.55,3340.0,3339.5,0.00759689]
[1732276852174,0.24627406,3339.9,3339.5,0.00759689]
[1732276852338,0.98022016,3339.9,3339.5,0.00759689]
[1732276852547,0.55,3339.6,3339.5,0.00759689]
[1732276852788,3.54437,3339.6,3339.5,0.00759689]
[1732276853085,3.79064491,3339.6,3339.5,0.00759689]
[1732276853444,0.79627491,3339.6,3339.5,0.00759689]
[1732276853761,3.82062,3340.1,3339.5,0.00759689]
[1732276853762,0.55,3340.0,3339.5,0.00759689]
[1732276853965,0.24623858,3339.9,3339.5,0.00759689]
[1732276855259,0.55,3339.6,3339.5,0.00759689]
[1732276855460,0.79623858,3339.6,3339.5,0.00759689]
[1732276855659,3.79060858,3339.6,3339.5,0.00759689]
[1732276855985,4.82106113,3339.6,3339.5,0.00759689]
[1732276857847,7.82106113,3339.6,3339.5,0.00759689]
[1732276858689,11.32955107,3339.6,3339.5,0.00759689]
[1732276859253,12.08985107,3339.6,3339.5,0.00759689]
[1732276860502,0.55,3338.4,3338.0,0.0574]
[1732276860993,3.5453,3338.6,3338.0,0.0574]
[1732276861190,0.55,3338.3,3338.0,0.0574]
[1732276861698,0.55,3338.6,3338.0,0.0574]
[1732276861871,0.55,3338.7,3338.0,0.0574]
[1732276862055,0.849515,3338.7,3338.0,0.0574]
[1732276862401,0.55,3338.5,3338.0,0.0574]
[1732276862754,2.99547,3338.4,3338.0,0.0574]
[1732276862956,0.55,3338.5,3338.0,0.0574]
[1732276863190,0.9344845,3338.5,3338.0,0.0574]
[1732276863989,3.9298745,3338.5,3338.0,0.0574]
[1732276864156,0.9344845,3338.5,3338.0,0.0574]
[1732276865281,0.55,3338.6,3338.0,0.0574]
[1732276865589,0.53390912,3338.6,3338.0,0.0574]
[1732276866868,2.99536,3338.5,3338.0,0.0574]
[1732276867068,2.99561,3338.3,3337.7,0.0574]
[1732276867489,2.99577,3338.1,3337.7,0.0574]
[1732276867861,0.55,3338.0,3336.3,0.0574]
[1732276868169,2.99557,3338.3,3336.5,0.0574]
[1732276868170,0.55,3338.1,3336.5,0.0574]
[1732276868502,2.99574,3338.1,3336.5,0.0574]
[1732276868999,0.55,3338.2,3336.5,0.0574]
[1732276869196,7.32646599,3338.2,3336.5,0.0574]
[1732276869369,3.299515,3338.7,3336.7,0.0574]
[1732276869574,1.50941311,3339.5,3337.4,3.0]
[1732276869575,0.8229,3339.3,3337.4,3.0]
[1732276869775,9.49733994,3339.6,3337.7,0.0574]
[1732276869776,2.99455,3339.4,3337.7,0.0574]
[1732276870088,2.99439,3339.6,3337.8,0.0574]
[1732276870298,4.31928994,3340.0,3338.0,0.0574]
[1732276870494,7.31333994,3340.0,3338.1,0.0299521]
[1732276870666,0.43192899,3339.9,3338.2,0.0574]
[1732276870868,2.99421,3339.8,3338.2,0.0574]
[1732276871094,0.43192899,3339.9,3338.2,0.0574]
[1732276871410,2.99366,3340.4,3338.4,0.0574]
[1732276871712,0.8211,3340.8,3338.8,0.0574]
[1732276871870,0.8211,3340.8,3339.0,0.0574]
[1732276871871,2.99362,3340.5,3339.0,0.0574]
[1732276872078,2.99345,3340.7,3339.0,0.0574]
[1732276872272,0.680777,3340.6,3339.0,0.0574]
[1732276872510,2.99362,3340.5,3339.0,0.0574]
[1732276872692,2.99301,3341.2,3339.1,0.32844658]
[1732276872871,3.50848994,3341.4,3339.4,0.0574]
[1732276873075,0.7894,3341.6,3339.6,0.0574]
[1732276873294,0.7894,3341.6,3339.9,0.0574]
[1732276873295,0.85097113,3341.6,3339.9,0.0574]
[1732276873498,0.06157113,3341.6,3340.0,0.02993807]
[1732276873711,0.79675924,3341.6,3340.1,0.0574]
[1732276874104,0.06157113,3341.6,3340.1,0.0574]
[1732276874307,3.05415113,3341.6,3340.1,0.0574]
[1732276874502,0.06157113,3341.6,3340.1,0.0574]
[1732276875299,2.99323,3340.9,3340.1,0.0574]
[1732276875519,3.54335,3340.8,3340.1,0.0574]
[1732276875714,3.647068,3340.7,3340.1,0.0574]
[1732276876011,2.99348,3340.6,3340.1,0.0574]
[1732276876317,0.653658,3340.7,3340.1,0.0574]
[1732276876482,0.55,3340.6,3340.1,0.0574]
[1732276877825,0.55,3340.9,3340.1,0.0574]
[1732276878200,3.54321,3340.9,3340.1,0.0574]
[1732276878615,0.55,3340.9,3340.1,0.0574]
[1732276879195,0.55,3340.8,3340.1,0.0574]
[1732276879733,3.54331,3340.8,3340.1,0.0574]
[1732276880037,0.653657,3340.7,3340.1,0.0574]
[1732276880199,2.99321,3340.9,3340.1,0.0574]
[1732276880522,0.55,3341.0,3340.1,0.0574]
[1732276880738,2.99265,3341.6,3340.1,0.0574]
[1732276880939,0.43122899,3341.3,3340.1,0.0574]
[1732276881224,3.0,3341.4,3340.1,0.0574]
[1732276881585,2.99258,3341.6,3340.1,0.0574]
[1732276881815,0.55,3341.3,3340.1,0.0574]
[1732276882025,0.904258,3341.3,3340.1,0.0574]
[1732276882234,3.54276,3341.4,3340.1,0.0574]
[1732276882831,0.55,3341.5,3340.1,0.0574]
[1732276883140,1.28130899,3341.5,3340.1,0.0574]
[1732276886314,4.27398899,3341.5,3340.1,0.0574]
[1732276886841,1.28130899,3341.5,3340.1,0.0574]
[1732276887008,0.55,3341.6,3340.1,0.0574]
[1732276887342,3.54262,3341.6,3340.1,0.0574]
[1732276887503,0.55,3341.6,3340.1,0.0574]
[1732276887703,0.55,3341.6,3339.7,0.0299353]
[1732276887704,6.50060994,3342.2,3340.4,0.0574]
[1732276887944,2.99212,3342.2,3340.6,0.0574]
[1732276888755,3.74822,3342.4,3340.7,0.0574]
[1732276888906,2.99202,3342.3,3340.7,0.0574]
[1732276889101,0.55,3342.1,3340.7,0.0574]
[1732276889404,0.55,3341.9,3340.7,0.0574]
[1732276889841,3.54256,3341.7,3340.7,0.0574]
[1732276890044,0.55,3341.4,3340.7,0.0574]
[1732276890421,6.54238,3341.9,3340.7,0.0574]
[1732276890628,0.55,3341.9,3340.7,0.0574]
[1732276890944,3.374835,3342.1,3340.7,0.0574]
[1732276891253,0.374835,3342.1,3340.7,0.0574]
[1732276891417,2.99165,3342.7,3340.8,0.0574]
[1732276891627,3.290622,3342.9,3341.2,0.0574]
[1732276891927,0.76042719,3342.7,3341.2,0.0574]
[1732276892244,2.99169,3342.6,3341.2,0.0574]
[1732276892743,2.99176,3342.6,3341.2,0.0574]
[1732276893111,6.54155,3342.8,3341.2,0.0574]
[1732276893312,6.54155,3342.8,3341.4,0.0574]
[1732276893739,0.55,3342.6,3341.4,0.0574]
[1732276894354,3.54168,3342.6,3341.4,0.0574]
[1732276894517,2.99179,3342.5,3341.4,0.0574]
[1732276894855,1.5711686,3342.6,3341.4,0.0574]
[1732276895023,0.55,3342.6,3341.4,0.0574]
[1732276895227,0.55,3342.6,3341.5,0.0574]
[1732276895551,3.54169,3342.6,3341.5,0.0574]
[1732276896862,2.99182,3342.5,3341.5,0.0574]
[1732276897471,2.99193,3342.4,3341.5,0.0574]
[1732276897830,0.55,3342.8,3341.5,0.0574]
[1732276898032,5.98086,3344.0,3341.8,0.0574]
[1732276898273,2.99097,3343.4,3341.8,0.0574]
[1732276898429,0.299097,3343.3,3342.1,0.0574]
[1732276898980,2.99083,3343.6,3342.1,0.0574]
[1732276899176,2.99093,3343.5,3342.1,0.0574]
[1732276899477,2.99104,3343.4,3342.1,0.0574]
[1732276899627,2.99104,3343.4,3342.3,0.0574]
[1732276900263,0.55,3343.3,3342.3,0.0574]
[1732276900431,2.99115,3343.2,3342.3,0.0574]
[1732276900832,0.55,3343.1,3342.3,0.0574]
[1732276901031,3.54129,3343.1,3342.3,0.0574]
[1732276901251,0.55,3342.9,3342.3,0.0574]
[1732276901637,0.55,3342.5,3342.3,0.0574]
[1732276902027,0.55,3342.7,3342.3,0.0574]
[1732276902258,3.54165,3342.7,3342.3,0.0574]
[1732276902665,2.99168,3342.6,3342.3,0.0574]
[1732276902875,3.54165,3342.7,3342.3,0.0574]
[1732276904359,0.55,3342.8,3342.3,0.0574]
[1732276904972,0.55,3343.0,3342.3,0.0574]
[1732276905333,3.54132,3343.0,3342.3,0.0574]
[1732276905558,0.55,3342.8,3342.3,0.0574]
[1732276906076,0.55,3342.4,3342.3,0.0574]
[1732276906278,0.55,3342.7,3342.3,0.0574]
[1732276907221,3.54164,3342.7,3342.3,0.0574]
[1732276907499,2.99169,3342.6,3342.3,0.0574]
[1732276907700,0.55,3342.5,3342.3,0.0574]
[1732276908100,3.54186,3342.4,3342.3,0.0574]
[1732276908255,0.55,3342.3,3342.0,0.0574]
[1732276908697,2.99195,3342.3,3342.0,0.0574]
[1732276908859,0.55,3342.2,3342.0,0.0574]
[1732276910355,3.54206,3342.2,3342.0,0.0574]
[1732276910559,2.99213,3342.1,3341.0,0.0574]
[1732276910772,0.55,3341.8,3341.0,0.0574]
[1732276911023,3.5424,3341.8,3341.0,0.0574]
[1732276911267,0.55,3341.5,3341.0,0.0574]
[1732276911866,0.55,3341.3,3341.0,0.0574]
[1732276912502,0.55,3341.2,3341.0,0.0574]
[1732276913391,0.5,3341.2,3341.0,0.0574]
[1732276914307,2.99269,3341.5,3341.0,0.0574]
[1732276915084,2.99225,3342.0,3341.0,0.0574]
[1732276916175,2.99231,3341.9,3341.0,0.0574]
[1732276916507,0.55,3341.8,3341.0,0.0574]
[1732276916799,1.48886923,3342.4,3341.0,0.0574]
[1732276916800,0.55,3342.0,3341.0,0.0574]
[1732276917107,0.55,3342.1,3341.0,0.0574]
[1732276917467,3.55,3342.3,3341.0,0.0574]
[1732276917693,3.7273861,3342.8,3341.1,0.02992903]
[1732276917694,2.99153,3342.8,3341.1,0.02992903]
[1732276917897,4.26289262,3343.0,3341.2,0.0574]
[1732276918206,2.99172,3342.6,3341.2,0.0574]
[1732276918370,0.34989926,3342.9,3341.2,0.0574]
[1732276918569,2.99151,3342.8,3341.2,3.32842485]
[1732276918768,2.99151,3342.8,3341.3,0.0574]
[1732276918967,2.99151,3342.8,3341.2,3.32842485]
[1732276918968,2.99135,3343.0,3341.5,0.0574]
[1732276919201,2.99156,3342.8,3341.5,0.0574]
[1732276919800,2.99174,3342.6,3341.5,0.0574]
[1732276920406,2.99193,3342.4,3341.5,0.46811907]
[1732276920602,2.99255,3341.7,3340.5,0.0574]
[1732276920803,2.99273,3341.5,3340.6,0.0574]
[1732276921106,0.55,3341.4,3340.6,0.0574]
[1732276921314,0.55,3341.5,3340.6,0.0574]
[1732276922181,2.99263,3341.6,3340.6,0.0574]
[1732276922386,0.55,3341.5,3340.6,0.0574]
[1732276922572,3.54268,3341.5,3340.6,0.0574]
[1732276923192,0.55,3341.3,3340.6,0.0574]
[1732276923693,3.54277,3341.4,3340.6,0.0574]
[1732276924804,0.55,3341.4,3340.6,0.0574]
[1732276924987,0.55,3341.1,3340.6,0.0574]
[1732276925193,3.54305,3341.1,3340.6,0.0574]
[1732276925407,0.55,3340.9,3340.6,0.0574]
[1732276925717,0.55,3340.5,3339.4,0.0574]
[1732276925881,3.54357,3340.5,3339.4,0.0574]
[1732276926106,0.55,3340.5,3339.4,0.0574]
[1732276926312,0.55,3340.8,3339.4,0.0574]
[1732276927207,3.5433,3340.8,3339.6,0.0574]
[1732276927415,3.54348,3340.6,3339.6,0.0574]
[1732276927809,3.54371,3340.4,3339.6,0.0574]
[1732276928321,3.54383,3340.2,3339.6,0.0574]
[1732276928517,0.55,3340.2,3339.6,0.0574]
[1732276928851,0.299363,3340.5,3339.6,0.0574]
[1732276928852,0.55,3340.0,3339.6,0.0574]
[1732276929807,3.54409,3340.0,3339.6,0.0574]
[1732276930235,0.55,3339.7,3339.6,0.0574]
[1732276930437,0.55,3339.7,3338.1,0.0574]
[1732276930621,0.55,3339.7,3338.0,3.32844965]
[1732276930622,0.55,3339.9,3338.3,0.0574]
[1732276930822,0.55,3339.6,3338.3,0.0574]
[1732276931053,3.54442,3339.6,3338.3,0.0574]
[1732276931523,0.55,3339.4,3338.3,0.0574]
[1732276931726,3.54454,3339.4,3338.4,0.0574]
[1732276931921,2.99467,3339.3,3338.4,0.0574]
[1732276932126,3.54454,3339.4,3338.4,0.0574]
[1732276932320,2.9948,3339.2,3338.4,0.0574]
[1732276932510,0.55,3338.5,3338.4,0.0574]
[1732276932924,0.55,3338.8,3338.4,0.0574]
[1732276933612,0.55,3338.6,3338.4,0.0574]
[1732276933818,0.55,3338.6,3338.1,0.0574]
[1732276934858,3.54529,3338.6,3338.1,0.0574]
[1732276935056,3.54513,3338.8,3338.1,0.0574]
[1732276935720,0.55,3338.6,3338.1,0.0574]
[1732276935960,2.99527,3338.6,3338.1,0.0574]
[1732276936338,0.55,3338.5,3338.1,0.0574]
[1732276936536,0.55,3338.6,3338.1,0.0574]
[1732276939052,0.93569719,3338.6,3338.1,0.0574]
[1732276939261,0.55,3338.4,3338.1,0.0574]
[1732276939566,0.55,3338.6,3338.1,0.0574]
[1732276939918,0.93570519,3338.6,3338.1,0.0574]
[1732276940556,0.55,3338.6,3338.1,0.0574]
[1732276940926,0.31196191,3338.7,3338.1,0.0574]
[1732276941821,3.30714191,3338.7,3338.1,0.0574]